[Event "Late-Titled-Tuesday-Blitz-April-30-2024"]
[Site "Chess.com"]
[Date "2024.04.30"]
[Round "4"]
[White "Rodalquilar"]
[Black "ural58"]
[Result "0-1"]
[WhiteElo "2696"]
[BlackElo "2551"]
[TimeControl "180+1"]
[EndTime "14:40:29 PDT"]
[Termination "ural58 won on time"]

1. d4 {[%clk 0:03:00.9]} 1... e6 {[%clk 0:02:56.1]} 2. Nf3 {[%clk 0:02:58.8]}
2... f5 {[%clk 0:02:46.9]} 3. c4 {[%clk 0:02:47.4]} 3... Nf6 {[%clk 0:02:46.4]}
4. Nc3 {[%clk 0:02:47.7]} 4... c6 {[%clk 0:02:41.9]} 5. Bf4 {[%clk 0:02:45.1]}
5... d5 {[%clk 0:02:38.2]} 6. e3 {[%clk 0:02:45.1]} 6... Nbd7 {[%clk 0:02:36.6]}
7. Qc2 {[%clk 0:02:36.5]} 7... Ne4 {[%clk 0:02:35.4]} 8. Bd3 {[%clk 0:02:35.5]}
8... Be7 {[%clk 0:02:34.5]} 9. h3 {[%clk 0:02:17.4]} 9... O-O {[%clk 0:02:34]}
10. g4 {[%clk 0:02:13.6]} 10... Ndf6 {[%clk 0:02:12]} 11. gxf5 {[%clk
0:01:59.5]} 11... exf5 {[%clk 0:02:11.8]} 12. cxd5 {[%clk 0:01:59.1]} 12... Nxc3
{[%clk 0:02:06.4]} 13. bxc3 {[%clk 0:01:44]} 13... Nxd5 {[%clk 0:02:06]} 14. Be5
{[%clk 0:01:43.8]} 14... Bd6 {[%clk 0:01:58.3]} 15. h4 {[%clk 0:01:34.9]} 15...
Bxe5 {[%clk 0:01:57.3]} 16. Nxe5 {[%clk 0:01:35.3]} 16... Be6 {[%clk 0:01:55.7]}
17. Rb1 {[%clk 0:01:33.4]} 17... Qc7 {[%clk 0:01:54]} 18. Rg1 {[%clk 0:01:11.7]}
18... Rae8 {[%clk 0:01:50.8]} 19. h5 {[%clk 0:00:59.3]} 19... Rf6 {[%clk
0:01:33.5]} 20. Qb2 {[%clk 0:00:40.9]} 20... b6 {[%clk 0:01:30.3]} 21. a4 {[%clk
0:00:39.2]} 21... Rh6 {[%clk 0:01:20.5]} 22. Bxf5 {[%clk 0:00:36.4]} 22... Bxf5
{[%clk 0:01:16.5]} 23. Rc1 {[%clk 0:00:32.9]} 23... Rxh5 {[%clk 0:01:03.9]} 24.
Qe2 {[%clk 0:00:33.2]} 24... Rh4 {[%clk 0:00:50.4]} 25. Kd2 {[%clk 0:00:24.8]}
25... Rxe5 {[%clk 0:00:49.8]} 26. dxe5 {[%clk 0:00:24.5]} 26... Qxe5 {[%clk
0:00:50.4]} 27. f4 {[%clk 0:00:17.2]} 27... Qe4 {[%clk 0:00:46.8]} 28. c4 {[%clk
0:00:13.1]} 28... Nf6 {[%clk 0:00:42.3]} 29. Rcd1 {[%clk 0:00:04.1]} 29... Qe7
{[%clk 0:00:39.4]} 30. Ke1 {[%clk 0:00:04.1]} 30... Bg4 {[%clk 0:00:32.6]} 31.
Qf2 {[%clk 0:00:02.3]} 31... Rh3 {[%clk 0:00:32]} 32. Rd3 {[%clk 0:00:01.5]}
32... Qb4+ {[%clk 0:00:28]} 33. Qd2 {[%clk 0:00:01.7]} 33... Qb1+ {[%clk
0:00:24]} 34. Kf2 {[%clk 0:00:02.2]} 34... Ne4+ {[%clk 0:00:22]} 0-1

[Event "Late-Titled-Tuesday-Blitz-April-30-2024"]
[Site "Chess.com"]
[Date "2024.04.30"]
[Round "4"]
[White "Heliosis11"]
[Black "annasargsyan_m"]
[Result "1-0"]
[WhiteElo "2402"]
[BlackElo "2588"]
[TimeControl "180+1"]
[EndTime "14:40:30 PDT"]
[Termination "Heliosis11 won by resignation"]

1. e4 {[%clk 0:03:00.9]} 1... c6 {[%clk 0:02:50.4]} 2. d4 {[%clk 0:03:00.9]}
2... d5 {[%clk 0:02:51.3]} 3. e5 {[%clk 0:03:00.7]} 3... Bf5 {[%clk 0:02:51]} 4.
h4 {[%clk 0:03:01.3]} 4... h5 {[%clk 0:02:50.5]} 5. Bd3 {[%clk 0:03:01.4]} 5...
Bxd3 {[%clk 0:02:50]} 6. Qxd3 {[%clk 0:03:02.3]} 6... e6 {[%clk 0:02:50.6]} 7.
Bg5 {[%clk 0:03:02.7]} 7... Qb6 {[%clk 0:02:50.3]} 8. Nd2 {[%clk 0:03:02.5]}
8... Qa6 {[%clk 0:02:50.5]} 9. c4 {[%clk 0:03:02.7]} 9... Ne7 {[%clk 0:02:50]}
10. Ngf3 {[%clk 0:03:02.1]} 10... Nf5 {[%clk 0:02:50.3]} 11. b3 {[%clk
0:02:58.4]} 11... Nd7 {[%clk 0:02:50]} 12. O-O {[%clk 0:02:58.2]} 12... Be7
{[%clk 0:02:49.5]} 13. Bxe7 {[%clk 0:02:52.1]} 13... Nxe7 {[%clk 0:02:49.2]} 14.
Ng5 {[%clk 0:02:50.3]} 14... Nf5 {[%clk 0:02:48.8]} 15. g3 {[%clk 0:02:50]}
15... c5 {[%clk 0:02:42.7]} 16. dxc5 {[%clk 0:02:36]} 16... Nxc5 {[%clk
0:02:37.5]} 17. Qc3 {[%clk 0:02:36]} 17... dxc4 {[%clk 0:02:36.2]} 18. Nxc4
{[%clk 0:02:35.3]} 18... O-O {[%clk 0:02:32.8]} 19. Qf3 {[%clk 0:02:32.2]} 19...
g6 {[%clk 0:02:31.5]} 20. Rfd1 {[%clk 0:02:30.2]} 20... Rad8 {[%clk 0:02:28.2]}
21. Rxd8 {[%clk 0:02:04.4]} 21... Rxd8 {[%clk 0:02:29.1]} 22. Rd1 {[%clk
0:02:04.5]} 22... Rf8 {[%clk 0:01:52]} 23. Nd6 {[%clk 0:01:44]} 23... Qxa2
{[%clk 0:01:47.2]} 24. Nxf5 {[%clk 0:01:35.6]} 24... exf5 {[%clk 0:01:45.4]} 25.
b4 {[%clk 0:00:57.7]} 25... Ne6 {[%clk 0:01:35.7]} 26. Qxb7 {[%clk 0:00:37.2]}
26... f4 {[%clk 0:01:26.6]} 27. Nxe6 {[%clk 0:00:18]} 27... fxg3 {[%clk
0:01:24.2]} 28. fxg3 {[%clk 0:00:16.3]} 28... Qxe6 {[%clk 0:01:11.7]} 29. Qd5
{[%clk 0:00:15.5]} 29... Qg4 {[%clk 0:01:11.5]} 30. Kg2 {[%clk 0:00:15.3]} 30...
Qxb4 {[%clk 0:01:10.6]} 31. Rf1 {[%clk 0:00:14.2]} 31... Qe7 {[%clk 0:01:06.3]}
32. Rf6 {[%clk 0:00:13.7]} 32... Kg7 {[%clk 0:01:05.6]} 33. Ra6 {[%clk 0:00:11]}
33... Rd8 {[%clk 0:01:03.3]} 34. Rd6 {[%clk 0:00:10.6]} 34... Rb8 {[%clk
0:00:58.4]} 35. Rd7 {[%clk 0:00:09.4]} 35... Rb2+ {[%clk 0:00:40.7]} 36. Kh3
{[%clk 0:00:09.5]} 36... Qf8 {[%clk 0:00:14.6]} 37. e6 {[%clk 0:00:09.7]} 37...
Kg8 {[%clk 0:00:14.5]} 38. Rxf7 {[%clk 0:00:08.8]} 1-0

[Event "Late-Titled-Tuesday-Blitz-April-30-2024"]
[Site "Chess.com"]
[Date "2024.04.30"]
[Round "4"]
[White "mr_gustavo"]
[Black "SCIM"]
[Result "0-1"]
[WhiteElo "2699"]
[BlackElo "2555"]
[TimeControl "180+1"]
[EndTime "14:40:34 PDT"]
[Termination "SCIM won on time"]

1. b3 {[%clk 0:02:44.9]} 1... e6 {[%clk 0:03:00.9]} 2. Bb2 {[%clk 0:02:44.2]}
2... Nf6 {[%clk 0:02:58.7]} 3. g3 {[%clk 0:02:44.8]} 3... Be7 {[%clk 0:02:57.8]}
4. Bg2 {[%clk 0:02:45.3]} 4... O-O {[%clk 0:02:58.2]} 5. e3 {[%clk 0:02:45.6]}
5... d5 {[%clk 0:02:58.3]} 6. Ne2 {[%clk 0:02:46.1]} 6... b6 {[%clk 0:02:58.5]}
7. d3 {[%clk 0:02:46.4]} 7... Bb7 {[%clk 0:02:59]} 8. Nd2 {[%clk 0:02:46.7]}
8... Nbd7 {[%clk 0:02:59.5]} 9. h3 {[%clk 0:02:46.4]} 9... c5 {[%clk 0:02:57.5]}
10. a3 {[%clk 0:02:46.4]} 10... Qc7 {[%clk 0:02:56.2]} 11. O-O {[%clk
0:02:45.1]} 11... Rad8 {[%clk 0:02:55.6]} 12. f4 {[%clk 0:02:25.9]} 12... Rfe8
{[%clk 0:02:54.9]} 13. Nf3 {[%clk 0:02:20.9]} 13... Bd6 {[%clk 0:02:50.6]} 14.
g4 {[%clk 0:01:14.6]} 14... e5 {[%clk 0:02:43.8]} 15. f5 {[%clk 0:01:06]} 15...
e4 {[%clk 0:02:39.8]} 16. Nh4 {[%clk 0:00:56]} 16... exd3 {[%clk 0:02:38.8]} 17.
Qxd3 {[%clk 0:00:56.9]} 17... Ne4 {[%clk 0:01:51.9]} 18. Rad1 {[%clk 0:00:44.6]}
18... Bh2+ {[%clk 0:01:50.7]} 19. Kh1 {[%clk 0:00:44.1]} 19... Bg3 {[%clk
0:01:42]} 20. Nf3 {[%clk 0:00:34.9]} 20... Nf2+ {[%clk 0:01:31.3]} 21. Rxf2
{[%clk 0:00:30.5]} 21... Bxf2 {[%clk 0:01:32.2]} 22. Bc1 {[%clk 0:00:15.6]}
22... Nf6 {[%clk 0:01:16.3]} 23. Nf4 {[%clk 0:00:11.1]} 23... Ne4 {[%clk
0:01:12.8]} 24. h4 {[%clk 0:00:06.4]} 24... Bg3 {[%clk 0:00:57.2]} 25. Rf1
{[%clk 0:00:02.5]} 25... Bxf4 {[%clk 0:00:45.8]} 26. exf4 {[%clk 0:00:02.2]}
26... Ng3+ {[%clk 0:00:46.4]} 27. Kh2 {[%clk 0:00:01.6]} 27... Nxf1+ {[%clk
0:00:46.1]} 28. Bxf1 {[%clk 0:00:02.5]} 28... d4 {[%clk 0:00:43.4]} 29. Ne5
{[%clk 0:00:03]} 29... Rxe5 {[%clk 0:00:42.7]} 30. fxe5 {[%clk 0:00:03.9]} 30...
Qxe5+ {[%clk 0:00:43.1]} 31. Kg1 {[%clk 0:00:04.5]} 31... Re8 {[%clk 0:00:37.7]}
32. Bd2 {[%clk 0:00:04.8]} 32... Qd5 {[%clk 0:00:35.7]} 33. Kf2 {[%clk
0:00:03.4]} 33... Qh1 {[%clk 0:00:32.7]} 34. Bf4 {[%clk 0:00:03.5]} 34... Qxh4+
{[%clk 0:00:31.3]} 35. Qg3 {[%clk 0:00:03.9]} 35... Qe7 {[%clk 0:00:28]} 36. Kg1
{[%clk 0:00:02.4]} 36... Qe4 {[%clk 0:00:25.2]} 0-1

[Event "Late-Titled-Tuesday-Blitz-April-30-2024"]
[Site "Chess.com"]
[Date "2024.04.30"]
[Round "4"]
[White "nekotyanof"]
[Black "imdvb6307"]
[Result "0-1"]
[WhiteElo "2695"]
[BlackElo "2550"]
[TimeControl "180+1"]
[EndTime "14:40:34 PDT"]
[Termination "imdvb6307 won by resignation"]

1. e4 {[%clk 0:03:00.9]} 1... Nc6 {[%clk 0:02:59.7]} 2. Nf3 {[%clk 0:03:00.2]}
2... d6 {[%clk 0:03:00]} 3. d4 {[%clk 0:02:59.6]} 3... Nf6 {[%clk 0:02:59.9]} 4.
Nc3 {[%clk 0:02:59.7]} 4... Bg4 {[%clk 0:02:55.8]} 5. d5 {[%clk 0:03:00.1]} 5...
Ne5 {[%clk 0:02:55.6]} 6. Bb5+ {[%clk 0:02:57.3]} 6... Ned7 {[%clk 0:02:35.3]}
7. h3 {[%clk 0:02:56]} 7... Bxf3 {[%clk 0:02:31.7]} 8. Qxf3 {[%clk 0:02:54.1]}
8... g6 {[%clk 0:02:32]} 9. O-O {[%clk 0:02:39.8]} 9... Bg7 {[%clk 0:02:32]} 10.
Be3 {[%clk 0:02:35.2]} 10... O-O {[%clk 0:02:28.9]} 11. Rad1 {[%clk 0:02:32.7]}
11... a6 {[%clk 0:02:24.4]} 12. Be2 {[%clk 0:02:32.8]} 12... b5 {[%clk
0:02:23.8]} 13. a3 {[%clk 0:02:31.4]} 13... Ne5 {[%clk 0:02:23.3]} 14. Qg3
{[%clk 0:02:29.8]} 14... Nc4 {[%clk 0:02:18.2]} 15. Bc1 {[%clk 0:02:30.2]} 15...
Qb8 {[%clk 0:01:32.9]} 16. b3 {[%clk 0:02:15.2]} 16... Nxa3 {[%clk 0:01:29.8]}
17. Bxa3 {[%clk 0:02:11.9]} 17... b4 {[%clk 0:01:29.8]} 18. e5 {[%clk
0:01:20.6]} 18... Nd7 {[%clk 0:01:29.2]} 19. e6 {[%clk 0:00:51.8]} 19... Nc5
{[%clk 0:01:29.1]} 20. exf7+ {[%clk 0:00:39.4]} 20... Rxf7 {[%clk 0:01:29]} 21.
Na4 {[%clk 0:00:36.2]} 21... bxa3 {[%clk 0:01:28.1]} 22. Nxc5 {[%clk 0:00:35.4]}
22... dxc5 {[%clk 0:01:28.4]} 23. Bg4 {[%clk 0:00:36.1]} 23... Kh8 {[%clk
0:01:14.8]} 24. Be6 {[%clk 0:00:36.4]} 24... Rf8 {[%clk 0:01:14]} 25. c4 {[%clk
0:00:28.9]} 25... a2 {[%clk 0:01:07.8]} 26. Ra1 {[%clk 0:00:25.6]} 26... Bxa1
{[%clk 0:01:01.3]} 27. Rxa1 {[%clk 0:00:26.5]} 27... Qd8 {[%clk 0:00:37]} 28.
Rxa2 {[%clk 0:00:23]} 28... Qd6 {[%clk 0:00:36.3]} 29. Qc3+ {[%clk 0:00:22.3]}
29... Rf6 {[%clk 0:00:36.6]} 30. Re2 {[%clk 0:00:20.7]} 30... Kg7 {[%clk
0:00:35]} 31. Re3 {[%clk 0:00:20.9]} 31... Kf8 {[%clk 0:00:34.1]} 32. Rf3 {[%clk
0:00:19.9]} 32... Kg7 {[%clk 0:00:29]} 33. g4 {[%clk 0:00:19.6]} 33... g5 {[%clk
0:00:29.3]} 34. Rf5 {[%clk 0:00:19.3]} 34... Kg6 {[%clk 0:00:25.9]} 35. Qd3
{[%clk 0:00:18.5]} 35... Kh6 {[%clk 0:00:23.9]} 36. h4 {[%clk 0:00:16.8]} 36...
Rxe6 {[%clk 0:00:18.9]} 37. Rxg5 {[%clk 0:00:12.6]} 37... Re1+ {[%clk
0:00:17.3]} 38. Kg2 {[%clk 0:00:12.9]} 38... Qf6 {[%clk 0:00:13.2]} 39. h5
{[%clk 0:00:13.2]} 39... Qxg5 {[%clk 0:00:12.7]} 0-1

[Event "Late-Titled-Tuesday-Blitz-April-30-2024"]
[Site "Chess.com"]
[Date "2024.04.30"]
[Round "4"]
[White "norwaytoadog"]
[Black "TheMagician"]
[Result "0-1"]
[WhiteElo "2329"]
[BlackElo "2129"]
[TimeControl "180+1"]
[EndTime "14:40:34 PDT"]
[Termination "TheMagician won on time"]

1. e4 {[%clk 0:03:00]} 1... e5 {[%clk 0:02:51.9]} 2. Nf3 {[%clk 0:03:00.2]} 2...
Nc6 {[%clk 0:02:51.5]} 3. Bb5 {[%clk 0:03:00.4]} 3... Nge7 {[%clk 0:02:49.5]} 4.
Nc3 {[%clk 0:02:58.1]} 4... g6 {[%clk 0:02:47.5]} 5. h4 {[%clk 0:02:57.1]} 5...
h6 {[%clk 0:02:46.3]} 6. h5 {[%clk 0:02:56.7]} 6... g5 {[%clk 0:02:46.2]} 7. d4
{[%clk 0:02:55.8]} 7... exd4 {[%clk 0:02:42.2]} 8. Nxd4 {[%clk 0:02:55.8]} 8...
Bg7 {[%clk 0:02:41.1]} 9. Be3 {[%clk 0:02:55.3]} 9... d6 {[%clk 0:02:39.3]} 10.
Qd2 {[%clk 0:02:46.8]} 10... Bd7 {[%clk 0:02:38.5]} 11. O-O-O {[%clk 0:02:43.5]}
11... O-O {[%clk 0:02:33.9]} 12. f4 {[%clk 0:02:29.3]} 12... gxf4 {[%clk
0:02:14.5]} 13. Nxc6 {[%clk 0:02:15.9]} 13... fxe3 {[%clk 0:02:05.6]} 14. Nxe7+
{[%clk 0:02:08.3]} 14... Qxe7 {[%clk 0:02:05.2]} 15. Qxe3 {[%clk 0:02:08.8]}
15... Bxc3 {[%clk 0:01:52.7]} 16. Bxd7 {[%clk 0:01:51.1]} 16... Bf6 {[%clk
0:01:49.2]} 17. Qg3+ {[%clk 0:01:47.7]} 17... Bg5+ {[%clk 0:01:49]} 18. Kb1
{[%clk 0:01:47.5]} 18... Qxd7 {[%clk 0:01:49]} 19. e5 {[%clk 0:01:47.2]} 19...
d5 {[%clk 0:01:47.1]} 20. c4 {[%clk 0:01:44.6]} 20... c6 {[%clk 0:01:47.3]} 21.
cxd5 {[%clk 0:01:39.6]} 21... cxd5 {[%clk 0:01:47]} 22. Qf3 {[%clk 0:01:38.8]}
22... d4 {[%clk 0:01:41.6]} 23. Qe4 {[%clk 0:01:35.2]} 23... Rad8 {[%clk
0:01:39.8]} 24. Rd3 {[%clk 0:01:33.2]} 24... Qe6 {[%clk 0:01:35.2]} 25. Rf1
{[%clk 0:01:29.5]} 25... f5 {[%clk 0:01:24.5]} 26. Qxb7 {[%clk 0:01:22.2]} 26...
Rf7 {[%clk 0:01:22.6]} 27. Qb5 {[%clk 0:01:16.8]} 27... Be3 {[%clk 0:01:18.3]}
28. Rfd1 {[%clk 0:01:10.8]} 28... Rc8 {[%clk 0:01:17.1]} 29. g3 {[%clk
0:00:45.9]} 29... Rfc7 {[%clk 0:01:16]} 30. b3 {[%clk 0:00:37.6]} 30... Rc5
{[%clk 0:01:12.5]} 31. Qb7 {[%clk 0:00:35]} 31... Qc6 {[%clk 0:01:01.2]} 32. Qe7
{[%clk 0:00:16.4]} 32... Rc1+ {[%clk 0:00:56]} 33. Kb2 {[%clk 0:00:16.9]} 33...
Rc2+ {[%clk 0:00:42.4]} 34. Kb1 {[%clk 0:00:16]} 34... Rg2 {[%clk 0:00:33.3]}
35. Rc3 {[%clk 0:00:06.5]} 35... dxc3 {[%clk 0:00:22.5]} 0-1

[Event "Late-Titled-Tuesday-Blitz-April-30-2024"]
[Site "Chess.com"]
[Date "2024.04.30"]
[Round "4"]
[White "chessisveryfun1264"]
[Black "emeli_chess"]
[Result "1-0"]
[WhiteElo "2623"]
[BlackElo "2471"]
[TimeControl "180+1"]
[EndTime "14:40:41 PDT"]
[Termination "chessisveryfun1264 won on time"]

1. c4 {[%clk 0:02:47.5]} 1... e6 {[%clk 0:02:57.8]} 2. g3 {[%clk 0:02:45.9]}
2... d5 {[%clk 0:02:57.1]} 3. Bg2 {[%clk 0:02:27.6]} 3... d4 {[%clk 0:02:54.1]}
4. e3 {[%clk 0:02:24]} 4... c5 {[%clk 0:02:51.4]} 5. exd4 {[%clk 0:02:24.9]}
5... cxd4 {[%clk 0:02:51.5]} 6. d3 {[%clk 0:02:25.6]} 6... Nc6 {[%clk
0:02:50.4]} 7. Nf3 {[%clk 0:02:26.5]} 7... Nf6 {[%clk 0:02:47.4]} 8. O-O {[%clk
0:02:26.4]} 8... Bd6 {[%clk 0:02:39.7]} 9. Bg5 {[%clk 0:02:19.9]} 9... h6 {[%clk
0:02:34]} 10. Bxf6 {[%clk 0:02:19.5]} 10... Qxf6 {[%clk 0:02:34.2]} 11. Nbd2
{[%clk 0:02:19.4]} 11... O-O {[%clk 0:02:31.4]} 12. Ne4 {[%clk 0:02:19.3]} 12...
Qe7 {[%clk 0:02:31.6]} 13. Nxd6 {[%clk 0:02:19.5]} 13... Qxd6 {[%clk 0:02:31.6]}
14. Re1 {[%clk 0:02:18.4]} 14... e5 {[%clk 0:02:25.2]} 15. b4 {[%clk 0:02:13.8]}
15... Nxb4 {[%clk 0:02:08.2]} 16. Rxe5 {[%clk 0:01:56.9]} 16... Bg4 {[%clk
0:01:55.5]} 17. Re4 {[%clk 0:01:51.6]} 17... Bxf3 {[%clk 0:01:50.9]} 18. Qxf3
{[%clk 0:01:32.7]} 18... Rae8 {[%clk 0:01:49]} 19. Rae1 {[%clk 0:01:31.9]} 19...
Rxe4 {[%clk 0:01:48.2]} 20. Rxe4 {[%clk 0:01:32.8]} 20... b6 {[%clk 0:01:41.3]}
21. Qg4 {[%clk 0:01:25.4]} 21... Rd8 {[%clk 0:01:38.3]} 22. Bf1 {[%clk
0:01:19.6]} 22... Nxa2 {[%clk 0:01:31.9]} 23. Qf5 {[%clk 0:01:00.5]} 23... Nc3
{[%clk 0:01:29]} 24. Rg4 {[%clk 0:00:56.4]} 24... Na4 {[%clk 0:01:18.6]} 25. Bg2
{[%clk 0:00:55.5]} 25... Nc5 {[%clk 0:01:16]} 26. Bd5 {[%clk 0:00:56]} 26... Qd7
{[%clk 0:00:53.4]} 27. Qf6 {[%clk 0:00:48.9]} 27... Qxg4 {[%clk 0:00:52.9]} 28.
Qxd8+ {[%clk 0:00:49.5]} 28... Kh7 {[%clk 0:00:51.8]} 29. Bxf7 {[%clk
0:00:50.4]} 29... h5 {[%clk 0:00:17.3]} 30. Qg8+ {[%clk 0:00:47.5]} 30... Kh6
{[%clk 0:00:17.5]} 31. h4 {[%clk 0:00:48.1]} 31... Qf5 {[%clk 0:00:01.8]} 32.
Bd5 {[%clk 0:00:33.2]} 32... Qh7 {[%clk 0:00:01.2]} 33. Qb8 {[%clk 0:00:27.6]}
33... Qxd3 {[%clk 0:00:01.1]} 34. Qxa7 {[%clk 0:00:18.1]} 34... Kh7 {[%clk
0:00:01.2]} 35. Qxb6 {[%clk 0:00:18]} 35... Qd1+ {[%clk 0:00:01.1]} 36. Kg2
{[%clk 0:00:17.2]} 36... Nd3 {[%clk 0:00:01]} 37. Be4+ {[%clk 0:00:14.2]} 1-0

[Event "Late-Titled-Tuesday-Blitz-April-30-2024"]
[Site "Chess.com"]
[Date "2024.04.30"]
[Round "4"]
[White "Blampman"]
[Black "grandmastergauri"]
[Result "0-1"]
[WhiteElo "2426"]
[BlackElo "2726"]
[TimeControl "180+1"]
[EndTime "14:40:42 PDT"]
[Termination "grandmastergauri won by resignation"]

1. d4 {[%clk 0:03:00.9]} 1... Nf6 {[%clk 0:02:56.1]} 2. c4 {[%clk 0:03:01.1]}
2... g6 {[%clk 0:02:56.2]} 3. Nc3 {[%clk 0:03:01.5]} 3... Bg7 {[%clk 0:02:56.8]}
4. e4 {[%clk 0:03:01.3]} 4... O-O {[%clk 0:02:57.5]} 5. Nf3 {[%clk 0:03:01.9]}
5... d6 {[%clk 0:02:58.1]} 6. Be2 {[%clk 0:03:02.6]} 6... e5 {[%clk 0:02:58.3]}
7. O-O {[%clk 0:03:03.3]} 7... Bg4 {[%clk 0:02:51.5]} 8. Be3 {[%clk 0:02:55]}
8... Bxf3 {[%clk 0:02:50.5]} 9. Bxf3 {[%clk 0:02:54.9]} 9... exd4 {[%clk
0:02:51.4]} 10. Bxd4 {[%clk 0:02:55.6]} 10... Nc6 {[%clk 0:02:52]} 11. Be3
{[%clk 0:02:53.2]} 11... Re8 {[%clk 0:02:52.4]} 12. Qc2 {[%clk 0:02:49.9]} 12...
Nd7 {[%clk 0:02:51.5]} 13. Be2 {[%clk 0:02:48.8]} 13... Nc5 {[%clk 0:02:51.5]}
14. Rad1 {[%clk 0:02:36.7]} 14... Bxc3 {[%clk 0:02:37.9]} 15. Bxc5 {[%clk
0:02:33.8]} 15... Bg7 {[%clk 0:02:27.1]} 16. Be3 {[%clk 0:02:22.4]} 16... Qh4
{[%clk 0:02:21.8]} 17. f3 {[%clk 0:02:14.3]} 17... a5 {[%clk 0:02:07.5]} 18. c5
{[%clk 0:02:12.9]} 18... dxc5 {[%clk 0:02:03.7]} 19. Qxc5 {[%clk 0:02:07.2]}
19... Rad8 {[%clk 0:01:27.2]} 20. Bg5 {[%clk 0:02:00.5]} 20... Qh5 {[%clk
0:01:13.7]} 21. g4 {[%clk 0:01:37.1]} 21... Rxd1 {[%clk 0:01:07.9]} 22. Rxd1
{[%clk 0:01:24.3]} 22... Qh3 {[%clk 0:01:07.2]} 23. Qf2 {[%clk 0:01:11.1]} 23...
Ne5 {[%clk 0:00:59.4]} 24. Rd5 {[%clk 0:00:58]} 24... c6 {[%clk 0:00:47.6]} 25.
Rxa5 {[%clk 0:00:46.3]} 25... h6 {[%clk 0:00:42.4]} 26. Rxe5 {[%clk 0:00:33.5]}
26... Bxe5 {[%clk 0:00:41.8]} 27. Bf1 {[%clk 0:00:33.6]} 27... Qxh2+ {[%clk
0:00:37.4]} 28. Qxh2 {[%clk 0:00:33.3]} 28... Bxh2+ {[%clk 0:00:38.3]} 29. Kxh2
{[%clk 0:00:33.8]} 29... hxg5 {[%clk 0:00:39.2]} 30. a4 {[%clk 0:00:31]} 30...
c5 {[%clk 0:00:38.4]} 31. Bc4 {[%clk 0:00:30.6]} 31... b6 {[%clk 0:00:35.8]} 32.
Kg2 {[%clk 0:00:30.4]} 32... Kg7 {[%clk 0:00:35.3]} 33. Kf2 {[%clk 0:00:30.3]}
33... Kf6 {[%clk 0:00:34.1]} 34. Ke3 {[%clk 0:00:30.7]} 34... Rh8 {[%clk
0:00:33.7]} 35. b3 {[%clk 0:00:27.7]} 35... Rh2 {[%clk 0:00:32.6]} 36. Bd5
{[%clk 0:00:27.9]} 36... Ke7 {[%clk 0:00:32.7]} 37. e5 {[%clk 0:00:25.9]} 37...
Rh1 {[%clk 0:00:29.9]} 38. f4 {[%clk 0:00:21.8]} 38... Re1+ {[%clk 0:00:24]} 39.
Kf3 {[%clk 0:00:21.1]} 39... Rf1+ {[%clk 0:00:23]} 40. Ke3 {[%clk 0:00:15.4]}
40... gxf4+ {[%clk 0:00:21.2]} 41. Ke2 {[%clk 0:00:15.6]} 41... Rg1 {[%clk
0:00:20.6]} 42. Kf3 {[%clk 0:00:15.8]} 42... g5 {[%clk 0:00:19.3]} 43. Be4
{[%clk 0:00:14.6]} 43... Ra1 {[%clk 0:00:18.9]} 44. Bd5 {[%clk 0:00:14.6]} 44...
Rc1 {[%clk 0:00:18.5]} 45. Bc4 {[%clk 0:00:14.9]} 45... Re1 {[%clk 0:00:17.4]}
46. Bd5 {[%clk 0:00:14.7]} 46... Rxe5 {[%clk 0:00:17.5]} 47. Bc4 {[%clk
0:00:13.8]} 47... Re3+ {[%clk 0:00:18]} 48. Kf2 {[%clk 0:00:13.5]} 48... f6
{[%clk 0:00:18.9]} 0-1

[Event "Late-Titled-Tuesday-Blitz-April-30-2024"]
[Site "Chess.com"]
[Date "2024.04.30"]
[Round "4"]
[White "Hrant_ChessMood"]
[Black "Firouzja2003"]
[Result "0-1"]
[WhiteElo "2940"]
[BlackElo "3153"]
[TimeControl "180+1"]
[EndTime "14:40:43 PDT"]
[Termination "Firouzja2003 won on time"]

1. d4 {[%clk 0:03:00.9]} 1... Nf6 {[%clk 0:02:57.1]} 2. c4 {[%clk 0:03:00.7]}
2... g6 {[%clk 0:02:57.1]} 3. Nf3 {[%clk 0:02:53.2]} 3... Bg7 {[%clk 0:02:55.9]}
4. g3 {[%clk 0:02:53.9]} 4... O-O {[%clk 0:02:55.6]} 5. Bg2 {[%clk 0:02:54.6]}
5... d6 {[%clk 0:02:56.3]} 6. O-O {[%clk 0:02:54.9]} 6... Ne4 {[%clk 0:02:56.6]}
7. Qc2 {[%clk 0:02:41.9]} 7... f5 {[%clk 0:02:56.3]} 8. Nc3 {[%clk 0:02:41.7]}
8... Nxc3 {[%clk 0:02:55.9]} 9. bxc3 {[%clk 0:02:35.9]} 9... Nc6 {[%clk
0:02:48.1]} 10. e4 {[%clk 0:02:27.4]} 10... e5 {[%clk 0:02:47]} 11. Bg5 {[%clk
0:02:03.7]} 11... Qe8 {[%clk 0:02:45]} 12. d5 {[%clk 0:01:21.5]} 12... Na5
{[%clk 0:02:44.4]} 13. exf5 {[%clk 0:01:02.2]} 13... Bxf5 {[%clk 0:02:41.1]} 14.
Qe2 {[%clk 0:01:02.1]} 14... h6 {[%clk 0:02:20.4]} 15. Be3 {[%clk 0:01:02]}
15... g5 {[%clk 0:02:20.9]} 16. Nd2 {[%clk 0:01:01.9]} 16... Qg6 {[%clk
0:02:20.7]} 17. Rfe1 {[%clk 0:00:47]} 17... b6 {[%clk 0:02:16]} 18. Bf1 {[%clk
0:00:38.4]} 18... Rf7 {[%clk 0:02:14.5]} 19. Nb3 {[%clk 0:00:38.8]} 19... Nb7
{[%clk 0:02:14.7]} 20. Qd2 {[%clk 0:00:31.7]} 20... Raf8 {[%clk 0:02:13.4]} 21.
Rad1 {[%clk 0:00:30.8]} 21... Be4 {[%clk 0:02:09.2]} 22. Bd3 {[%clk 0:00:29.9]}
22... Bxd3 {[%clk 0:02:04.9]} 23. Qxd3 {[%clk 0:00:30.2]} 23... e4 {[%clk
0:02:05.6]} 24. Qc2 {[%clk 0:00:27.3]} 24... Nc5 {[%clk 0:02:02.6]} 25. Nxc5
{[%clk 0:00:23.2]} 25... bxc5 {[%clk 0:02:03.5]} 26. Rb1 {[%clk 0:00:22.9]}
26... h5 {[%clk 0:01:57.2]} 27. Rb7 {[%clk 0:00:18.8]} 27... h4 {[%clk
0:01:57.2]} 28. Reb1 {[%clk 0:00:17.6]} 28... Qf5 {[%clk 0:01:46.4]} 29. Rb8
{[%clk 0:00:13]} 29... hxg3 {[%clk 0:00:41.7]} 30. hxg3 {[%clk 0:00:12.8]} 30...
Be5 {[%clk 0:00:41.8]} 31. Qe2 {[%clk 0:00:11.3]} 31... Rh7 {[%clk 0:00:34.9]}
32. Rxf8+ {[%clk 0:00:10.5]} 32... Kxf8 {[%clk 0:00:35.8]} 33. Qf1 {[%clk
0:00:06]} 33... Bxc3 {[%clk 0:00:27.4]} 34. Qg2 {[%clk 0:00:06.4]} 34... Bd4
{[%clk 0:00:26.4]} 35. Re1 {[%clk 0:00:05.1]} 35... Rf7 {[%clk 0:00:21]} 36.
Bxd4 {[%clk 0:00:04.1]} 36... cxd4 {[%clk 0:00:21.9]} 37. Rxe4 {[%clk
0:00:04.2]} 37... d3 {[%clk 0:00:22.5]} 38. Rd4 {[%clk 0:00:04.6]} 38... Re7
{[%clk 0:00:22.1]} 39. g4 {[%clk 0:00:01.8]} 39... Re1+ {[%clk 0:00:20.7]} 40.
Kh2 {[%clk 0:00:01.8]} 40... Qe5+ {[%clk 0:00:21.4]} 0-1